{"text_format":"1","workbook":"xlsx","n_sheets":1,"sheets":["تایم‌شیت"],"not_rendered":{"charts":0,"images":0,"macros":1,"external_links":0,"defined_names":5,"comments":0,"pivot_tables":0},"unopened":[],"bounds":{"document_bytes":16777216,"sheet_cells":100000,"rows_first":2000,"rows_last":500,"rows_between":2000,"halvings":0,"cell_chars":16384,"cell_head_chars":4096},"cells_cut":0,"cells_raw":0,"read":"whole","date_system":"1900"}

{"sheet":"تایم‌شیت","index":0,"n_rows":36,"n_cols":42,"rows_kept":36,"cut":false,"hidden":false,"merged":[[26,0,26,1],[29,0,29,38],[31,2,31,5],[33,2,33,5],[35,1,35,5]]}
["تایم‌شیت ماهیانه",null,null,null,null,null,null,null,null,null,null,null,null,null,null,null,null,null,null,null,null,null,null,null,null,null,null,null,null,null,null,null,null,null,null,null,null,null,null,"[نام شرکت]",null,"اگلوی تایم شیت ماهیانه"]
[null,null,null,null,null,null,null,null,null,null,null,null,null,null,null,null,null,null,null,null,null,null,null,null,null,null,null,null,null,null,null,null,null,null,null,null,null,null,null,"[آدرس 1]",null,"© 2020 Excelut.com"]
["کارمند","[نام]",null,null,null,null,null,null,null,null,null,null,null,null,null,null,null,null,null,null,null,null,null,null,null,null,null,null,null,null,null,null,null,null,null,null,null,null,null,"[شهر، کد پستی]"]
["دپارتمان","[دپارتمان]",null,null,null,null,null,null,null,null,null,null,null,null,null,null,null,null,null,null,null,null,null,null,null,null,null,null,null,null,null,null,null,null,null,null,null,null,null,"[تلفن]"]
[null,null,null,null,null,null,null,null,null,null,null,null,null,null,null,null,null,null,null,null,null,null,null,null,null,null,null,null,null,null,null,null,null,null,null,null,null,null,null,"[فکس]"]
["تاریخ شروع","1399/3/6"]
[null,null,{"$f":"J_SUBDAY(B6,J_WEEKDAY(B6),1)","v":"1399/03/03"},{"$f":"J_ADDDAY($C$7,1,1)","v":"1399/03/04"},{"$f":"J_ADDDAY($C$7,2,1)","v":"1399/03/05"},{"$f":"J_ADDDAY($C$7,3,1)","v":"1399/03/06"},{"$f":"J_ADDDAY($C$7,4,1)","v":"1399/03/07"},{"$f":"J_ADDDAY($C$7,5,1)","v":"1399/03/08"},{"$f":"J_ADDDAY($C$7,6,1)","v":"1399/03/09"},{"$f":"J_ADDDAY($C$7,7,1)","v":"1399/03/10"},{"$f":"J_ADDDAY($C$7,8,1)","v":"1399/03/11"},{"$f":"J_ADDDAY($C$7,9,1)","v":"1399/03/12"},{"$f":"J_ADDDAY($C$7,10,1)","v":"1399/03/13"},{"$f":"J_ADDDAY($C$7,11,1)","v":"1399/03/14"},{"$f":"J_ADDDAY($C$7,12,1)","v":"1399/03/15"},{"$f":"J_ADDDAY($C$7,13,1)","v":"1399/03/16"},{"$f":"J_ADDDAY($C$7,14,1)","v":"1399/03/17"},{"$f":"J_ADDDAY($C$7,15,1)","v":"1399/03/18"},{"$f":"J_ADDDAY($C$7,16,1)","v":"1399/03/19"},{"$f":"J_ADDDAY($C$7,17,1)","v":"1399/03/20"},{"$f":"J_ADDDAY($C$7,18,1)","v":"1399/03/21"},{"$f":"J_ADDDAY($C$7,19,1)","v":"1399/03/22"},{"$f":"J_ADDDAY($C$7,20,1)","v":"1399/03/23"},{"$f":"J_ADDDAY($C$7,21,1)","v":"1399/03/24"},{"$f":"J_ADDDAY($C$7,22,1)","v":"1399/03/25"},{"$f":"J_ADDDAY($C$7,23,1)","v":"1399/03/26"},{"$f":"J_ADDDAY($C$7,24,1)","v":"1399/03/27"},{"$f":"J_ADDDAY($C$7,25,1)","v":"1399/03/28"},{"$f":"J_ADDDAY($C$7,26,1)","v":"1399/03/29"},{"$f":"J_ADDDAY($C$7,27,1)","v":"1399/03/30"},{"$f":"J_ADDDAY($C$7,28,1)","v":"1399/03/31"},{"$f":"J_ADDDAY($C$7,29,1)","v":"1399/04/01"},{"$f":"J_ADDDAY($C$7,30,1)","v":"1399/04/02"},{"$f":"J_ADDDAY($C$7,31,1)","v":"1399/04/03"},{"$f":"J_ADDDAY($C$7,32,1)","v":"1399/04/04"},{"$f":"J_ADDDAY($C$7,33,1)","v":"1399/04/05"},{"$f":"J_ADDDAY($C$7,34,1)","v":"1399/04/06"},{"$f":"J_ADDDAY($C$7,35,1)","v":"1399/04/07"},{"$f":"J_ADDDAY($C$7,36,1)","v":"1399/04/08"}]
[null,null,{"$f":"IF(OR(B7=\"\",MID(C7,6,2)<>MID(B7,6,2)),CHOOSE(VALUE(MID(C7,6,2)),\"فرو\",\"ارد\",\"خرداد\",\"تیر\",\"مرداد\",\"شهر\",\"مهر\",\"آبان\",\"آذر\",\"دی\",\"بهمن\",\"اسفند\"),\"\")","v":"خرداد"},{"$f":"IF(OR(C7=\"\",MID(D7,6,2)<>MID(C7,6,2)),CHOOSE(VALUE(MID(D7,6,2)),\"فرو\",\"ارد\",\"خرداد\",\"تیر\",\"مرداد\",\"شهر\",\"مهر\",\"آبان\",\"آذر\",\"دی\",\"بهمن\",\"اسفند\"),\"\")","v":""},"","","","","","","","","","","","","","","","","","","","","","","","","","","","تیر","","","","","",{"$f":"IF(OR(AK9=\"\",MONTH(AL9)<>MONTH(AK9)),TEXT(AL9,\"mmm\"),\"\")","v":""},""]
[null,null,{"$f":"RIGHT(C7,2)","v":"03"},{"$f":"RIGHT(D7,2)","v":"04"},"05","06","07","08","09","10","11","12","13","14","15","16","17","18","19","20","21","22","23","24","25","26","27","28","29","30","31","01","02","03","04","05","06",{"$f":"AK9+1","v":"1900-01-07"},"1900-01-08"]
["پروژه","کد","ش","ی","د","س","چ","پ","ج","ش","ی","د","س","چ","پ","ج","ش","ی","د","س","چ","پ","ج","ش","ی","د","س","چ","پ","ج","ش","ی","د","س","چ","پ","ج",{"$f":"CHOOSE(WEEKDAY(AL9,1),\"Su\",\"M\",\"Tu\",\"W\",\"Th\",\"F\",\"Sa\")","v":"Sa"},{"$f":"CHOOSE(WEEKDAY(AM9,1),\"Su\",\"M\",\"Tu\",\"W\",\"Th\",\"F\",\"Sa\")","v":"Su"},"کل ساعات"]
["پروژه 1","کد001",2.25,null,null,null,null,null,null,null,null,null,null,null,null,null,null,null,null,null,null,null,null,null,null,null,null,null,null,null,null,null,null,null,null,null,null,null,null,{"$f":"SUM(C11:AM11)","v":2.25}]
[null,"کد002",null,2.25,null,null,null,null,null,null,null,null,null,null,null,null,null,null,null,null,null,null,null,null,null,null,null,null,null,null,null,null,null,null,null,null,null,null,null,2.25]
[null,null,null,null,null,null,null,null,null,null,null,null,null,null,null,null,null,null,null,null,null,null,null,null,null,null,null,null,null,null,null,null,null,null,null,null,null,null,null,0]
[null,null,null,null,null,null,null,null,null,null,null,null,null,null,null,null,null,null,null,null,null,null,null,null,null,null,null,null,null,null,null,null,null,null,null,null,null,null,null,0]
[null,null,null,null,null,null,null,null,null,null,null,null,null,null,null,null,null,null,null,null,null,null,null,null,null,null,null,null,null,null,null,null,null,null,null,null,null,null,null,{"$f":"SUM(C15:AM15)","v":0}]
[null,null,null,null,null,null,null,null,null,null,null,null,null,null,null,null,null,null,null,null,null,null,null,null,null,null,null,null,null,null,null,null,null,null,null,null,null,null,null,{"$f":"SUM(C16:AM16)","v":0}]
[null,null,null,null,null,null,null,null,null,null,null,null,null,null,null,null,null,null,null,null,null,null,null,null,null,null,null,null,null,null,null,null,null,null,null,null,null,null,null,{"$f":"SUM(C17:AM17)","v":0}]
[null,null,null,null,null,null,null,null,null,null,null,null,null,null,null,null,null,null,null,null,null,null,null,null,null,null,null,null,null,null,null,null,null,null,null,null,null,null,null,0]
[null,null,null,null,null,null,null,null,null,null,null,null,null,null,null,null,null,null,null,null,null,null,null,null,null,null,null,null,null,null,null,null,null,null,null,null,null,null,null,0]
[null,null,null,null,null,null,null,null,null,null,null,null,null,null,null,null,null,null,null,null,null,null,null,null,null,null,null,null,null,null,null,null,null,null,null,null,null,null,null,0]
[null,null,null,null,null,null,null,null,null,null,null,null,null,null,null,null,null,null,null,null,null,null,null,null,null,null,null,null,null,null,null,null,null,null,null,null,null,null,null,0]
[null,null,null,null,null,null,null,null,null,null,null,null,null,null,null,null,null,null,null,null,null,null,null,null,null,null,null,null,null,null,null,null,null,null,null,null,null,null,null,0]
[null,null,null,null,null,null,null,null,null,null,null,null,null,null,null,null,null,null,null,null,null,null,null,null,null,null,null,null,null,null,null,null,null,null,null,null,null,null,null,0]
["تعطیلات",null,null,null,null,null,null,null,null,null,null,null,null,null,null,null,null,null,null,null,null,null,null,null,null,null,null,null,null,null,null,null,null,null,null,null,null,null,null,0]
["مرخصی استعلاجی",null,null,null,null,null,null,null,null,null,null,null,null,null,null,null,null,null,null,null,null,null,null,null,null,null,null,null,null,null,null,null,null,null,null,null,null,null,null,0]
["مرخصی شخصی",null,null,null,null,null,null,null,null,null,null,null,null,null,null,null,null,null,null,null,null,null,null,null,null,null,null,null,null,null,null,null,null,null,null,null,null,null,null,0]
["کل ساعات:",null,{"$f":"SUM(C11:C26)","v":2.25},2.25,0,0,0,0,0,0,0,0,0,0,0,0,0,0,0,0,0,0,0,0,0,0,0,0,0,0,0,0,0,0,0,0,0,0,0,{"$f":"SUM(C27:AM27)","v":4.5}]
[null,"ساعات معمول:",null,null,null,null,null,null,null,null,null,null,null,null,null,null,null,null,null,null,null,null,null,null,null,null,null,null,null,null,null,null,null,null,null,null,null,null,null,{"$f":"SUM(C28:AM28)","v":0}]
[null,"ساعات اضافه‌کاری:",null,null,null,null,null,null,null,null,null,null,null,null,null,null,null,null,null,null,null,null,null,null,null,null,null,null,null,null,null,null,null,null,null,null,null,null,null,{"$f":"SUM(C29:AM29)","v":0}]
["یادداشت: برای 15 دقیقه از 0.25، برای 30 دقیقه از 0.50 و برای 45 دقیقه از 0.75 استفاده کنید."]
[]
[]
["تاریخ","امضای کارمند"]
[]
["تاریخ","امضای سوپروایزر"]
[null,"نام سوپروایزر: [نام]"]